bitfinex-derivatives/quotes_ETHF0:USTF0_20250507
["timestamp","ask_amount","ask_price","bid_price","bid_amount"]
[1746595336051,9.88032491,1829.8,1829.7,4.92588174]
[1746595336350,9.88032491,1829.8,1829.7,4.92583399]
[1746595336648,9.88032491,1829.8,1829.7,4.92594827]
[1746595336851,1.09317,1829.8,1829.7,4.92594827]
[1746595337149,2.69866,1829.9,1829.8,1.09317]
[1746595337344,2.69866,1829.9,1829.8,2.79407]
[1746595337550,11.48581491,1829.9,1829.8,2.79407]
[1746595337745,11.48581491,1829.9,1829.8,3.18416085]
[1746595338152,11.48581491,1829.9,1829.8,3.18418877]
[1746595340351,5.74448728,1829.9,1829.8,3.18418877]
[1746595340552,11.48581491,1829.9,1829.8,3.18487517]
[1746595340852,11.48581491,1829.9,1829.8,0.39080517]
[1746595341150,1.09317,1829.8,1829.7,2.79419]
[1746595341351,11.56682491,1829.8,1829.7,4.82427858]
[1746595342953,11.56682491,1829.8,1829.7,4.82456992]
[1746595344653,11.56682491,1829.8,1829.7,4.82480657]
[1746595345650,11.56682491,1829.8,1829.7,3.99980657]
[1746595346855,10.47365491,1829.8,1829.7,3.99980657]
[1746595347051,3.2078,1830.1,1829.7,3.99980657]
[1746595347355,5.25798,1830.2,1830.1,1.09296]
[1746595347554,6.86478,1830.2,1830.1,1.48427657]
[1746595347754,15.65193491,1830.2,1830.1,1.48427657]
[1746595347956,15.65193491,1830.2,1830.1,0.39131657]
[1746595348158,1.093,1830.1,1830.0,2.80892]
[1746595348351,11.48695491,1830.1,1830.0,3.20046971]
[1746595348551,2.6998,1830.1,1830.0,3.20046971]
[1746595349053,12.36015491,1830.1,1830.0,0.39154971]
[1746595349253,15.96015491,1830.1,1830.0,0.39154971]
[1746595349455,24.16795491,1830.1,1830.0,0.39154971]
[1746595350158,1.09323,1829.7,1829.6,2.75037]
[1746595350357,9.88038491,1829.7,1829.6,3.14211517]
[1746595350552,5.74132763,1829.7,1829.6,3.14210055]
[1746595351456,6.83455763,1829.7,1829.6,3.14210055]
[1746595351956,8.52205763,1829.7,1829.6,3.14204826]
[1746595352755,10.47465491,1829.7,1829.6,3.14204826]
[1746595353360,11.56788491,1829.7,1829.6,3.14204826]
[1746595355059,11.56788491,1829.7,1829.6,3.14185518]
[1746595355559,11.56788491,1829.7,1829.6,3.14188449]
[1746595357461,10.47465491,1829.7,1829.6,3.14188449]
[1746595357661,8.78715491,1829.7,1829.6,6.34968449]
[1746595359265,8.78715491,1829.7,1829.6,6.34997741]
[1746595360468,7.75132,1829.8,1829.7,1.09323]
[1746595360655,7.75132,1829.8,1829.7,3.21693741]
[1746595360861,16.53847491,1829.8,1829.7,3.21693741]
[1746595362774,16.53847491,1829.8,1829.7,3.21715039]
[1746595364270,20.13847491,1829.8,1829.7,3.21715039]
[1746595364670,20.13847491,1829.8,1829.7,3.21718404]
[1746595365067,16.53847491,1829.8,1829.7,3.21718404]
[1746595366471,16.53847491,1829.8,1829.7,3.21719986]
[1746595367067,1.09309,1830.0,1829.9,1.09311]
[1746595367262,9.88024491,1830.0,1829.9,1.48517986]
[1746595367568,4.164,1830.1,1830.0,1.09306]
[1746595367765,4.164,1830.1,1830.0,3.13922986]
[1746595369068,4.164,1830.1,1830.0,6.73922986]
[1746595370078,4.164,1830.1,1830.0,6.73918788]
[1746595371879,4.164,1830.1,1830.0,9.94684332]
[1746595372979,5.257,1830.1,1830.0,9.94684332]
[1746595373180,4.164,1830.1,1830.0,9.94684332]
[1746595373377,1.587,1830.3,1830.1,1.09296]
[1746595373680,5.25686,1830.4,1830.3,1.09288]
[1746595373884,8.78715491,1830.4,1830.3,1.48455527]
[1746595374070,9.87997491,1830.4,1830.3,6.73305527]
[1746595374773,11.59367491,1830.4,1830.3,5.64017527]
[1746595374981,11.59367491,1830.4,1830.3,6.73305527]
[1746595375180,11.59367491,1830.4,1830.3,3.13305527]
[1746595375480,11.59367491,1830.4,1830.3,3.13281084]
[1746595377285,11.59367491,1830.4,1830.3,3.13266851]
[1746595377584,11.59367491,1830.4,1830.3,2.03978851]
[1746595377786,11.59367491,1830.4,1830.3,3.13266851]
[1746595379085,11.59367491,1830.4,1830.3,3.13247637]
[1746595380391,11.59367491,1830.4,1830.3,3.13243052]
[1746595380790,11.59367491,1830.4,1830.3,3.13241105]
[1746595382290,11.59367491,1830.4,1830.3,3.13239098]
[1746595382995,10.50085491,1830.4,1830.3,3.13239098]
[1746595383293,8.78715491,1830.4,1830.3,6.34019098]
[1746595383492,8.78715491,1830.4,1830.3,6.34011777]
[1746595384193,8.78715491,1830.4,1830.3,6.34010143]
[1746595384390,3.04582728,1830.4,1830.3,6.34010143]
[1746595385294,4.13864728,1830.4,1830.3,6.34010143]
[1746595385594,9.87997491,1830.4,1830.3,3.13230143]
[1746595385794,9.87997491,1830.4,1830.3,3.13234656]
[1746595386900,11.61397491,1830.4,1830.3,1.48384656]
[1746595387596,11.61397491,1830.4,1830.3,1.48390922]
[1746595389396,11.61397491,1830.4,1830.3,1.48396573]
[1746595390093,11.61397491,1830.4,1830.3,1.48398309]
[1746595390497,11.61397491,1830.4,1830.3,1.48397697]
[1746595391288,11.61397491,1830.4,1830.3,1.48395201]
[1746595392495,8.78715491,1830.4,1830.3,1.48395201]
[1746595392702,8.78715491,1830.4,1830.3,1.48411432]
[1746595392886,0.8142,1830.5,1830.4,1.09282]
[1746595393091,5.8466,1830.6,1830.5,1.09276]
[1746595393290,12.95115491,1830.6,1830.5,1.48399432]
[1746595393491,12.95115491,1830.6,1830.5,3.21499432]
[1746595395299,12.95115491,1830.6,1830.5,6.42279432]
[1746595395794,0.8728,1830.9,1830.8,1.09258]
[1746595395993,3.04582728,1830.9,1830.8,4.69161432]
[1746595396293,3.04582728,1830.9,1830.8,4.30038]
[1746595396495,7.82286,1831.0,1830.9,1.09252]
[1746595396698,13.56418763,1831.0,1830.9,1.09252]
[1746595396999,16.61001491,1831.0,1830.9,1.09252]
[1746595397400,16.61001491,1831.0,1830.9,1.48402614]
[1746595397591,16.61001491,1831.0,1830.9,1.09252]
[1746595397794,16.61001491,1831.0,1830.9,1.48409794]
[1746595398089,16.61001491,1831.0,1830.9,1.09252]
[1746595398295,16.61006491,1831.0,1830.9,1.09252]
[1746595398490,1.09252,1830.9,1830.8,1.09256]
[1746595398699,11.57157491,1830.9,1830.8,1.48403979]
[1746595399205,11.57157491,1830.9,1830.8,1.4840741]
[1746595401999,11.57157491,1830.9,1830.8,1.4840941]
[1746595402205,15.17157491,1830.9,1830.8,1.4840941]
[1746595402702,15.17157491,1830.9,1830.8,1.4833513]
[1746595406405,15.17157491,1830.9,1830.8,1.48326767]
[1746595408102,15.17157491,1830.9,1830.8,1.09258]
[1746595408306,15.17157491,1830.9,1830.8,1.48326323]
[1746595408500,15.17157491,1830.9,1830.8,1.09258]
[1746595409902,14.07905491,1830.9,1830.8,1.09258]
[1746595410503,5.2919,1830.9,1830.8,1.09258]
[1746595410709,3.6,1830.9,1830.8,1.09258]
[1746595411208,4.69252,1830.9,1830.8,1.09258]
[1746595411709,1.09261,1830.8,1830.7,1.09259]
[1746595411913,4.95503728,1830.8,1830.7,2.69179]
[1746595412207,6.1458,1830.8,1830.7,2.69179]
[1746595414712,9.19162728,1830.8,1830.7,2.69179]
[1746595416113,5.59162728,1830.8,1830.7,2.69179]
[1746595416412,11.33295491,1830.8,1830.7,2.69179]
[1746595417506,4.9772,1831.0,1830.8,1.09252]
[1746595417701,9.87967491,1830.9,1830.8,2.72232]
[1746595417913,11.56607491,1830.9,1830.8,2.72232]
[1746595421116,15.16607491,1830.9,1830.8,2.72232]
[1746595421417,15.16607491,1830.9,1830.8,1.09252]
[1746595422115,11.56607491,1830.9,1830.8,1.09252]
[1746595424218,15.16607491,1830.9,1830.8,1.09252]
[1746595426119,11.56607491,1830.9,1830.8,1.09252]
[1746595427112,1.09258,1830.8,1830.7,2.80712]
[1746595427313,9.87973491,1830.8,1830.7,2.80712]
[1746595427515,11.59933491,1830.8,1830.7,2.80712]
[1746595428224,15.19933491,1830.8,1830.7,2.80712]
[1746595429225,11.59933491,1830.8,1830.7,2.80712]
[1746595431127,15.19933491,1830.8,1830.7,2.80712]
[1746595432624,12.15350763,1830.8,1830.7,2.80712]
[1746595432825,15.19933491,1830.8,1830.7,2.80712]
[1746595434427,14.10675491,1830.8,1830.7,2.80712]
[1746595436228,12.38715491,1830.8,1830.7,2.80712]
[1746595438529,9.34132763,1830.8,1830.7,2.80712]
[1746595438726,12.38715491,1830.8,1830.7,2.80712]
[1746595439627,13.47973491,1830.8,1830.7,2.80712]
[1746595439826,14.13185491,1830.8,1830.7,2.80712]
[1746595442629,15.22443491,1830.8,1830.7,2.80712]
[1746595443828,14.13185491,1830.8,1830.7,2.80712]
[1746595444025,15.22443491,1830.8,1830.7,2.80712]
[1746595445629,14.13185491,1830.8,1830.7,2.80712]
[1746595447531,12.38715491,1830.8,1830.7,2.80712]
[1746595449434,13.47973491,1830.8,1830.7,2.80712]
[1746595450134,12.38715491,1830.8,1830.7,2.80712]
[1746595451041,13.47973491,1830.8,1830.7,2.80712]
[1746595451244,16.06753491,1830.8,1830.7,2.80712]
[1746595454145,12.38715491,1830.8,1830.7,2.80712]
[1746595457133,3.6,1830.8,1830.7,2.80712]
[1746595458242,2.80004,1830.9,1830.8,1.09258]
[1746595458451,9.87978491,1830.8,1830.6,10.51098712]
[1746595458650,8.78715491,1830.7,1830.6,12.96138712]
[1746595458949,8.78715491,1830.7,1830.6,14.05408712]
[1746595459152,3.6,1830.7,1830.6,14.05408712]
[1746595459845,14.01235491,1830.7,1830.6,14.05408712]
[1746595460048,14.84565491,1830.7,1830.6,6.7509]
[1746595460246,14.84565491,1830.7,1830.6,21.24419555]
[1746595462553,24.14609491,1830.7,1830.6,14.49329555]
[1746595462750,24.97009491,1830.7,1830.6,14.49329555]
[1746595463052,1.0927,1830.6,1830.5,10.93687402]
[1746595463250,2.8156,1830.6,1830.5,10.93687402]
[1746595463550,11.60275491,1830.6,1830.5,10.93687402]
[1746595464144,15.20275491,1830.6,1830.5,10.93687402]
[1746595465354,1.09282,1830.4,1830.3,10.59179196]
[1746595465545,9.87997491,1830.4,1830.3,10.59179196]
[1746595466046,11.59467491,1830.4,1830.3,10.59179196]
[1746595466249,15.19467491,1830.4,1830.3,10.59179196]
[1746595466855,1.09288,1830.3,1830.2,7.29263292]
[1746595467052,11.59533491,1830.3,1830.2,8.38557292]
[1746595468048,15.19533491,1830.3,1830.2,8.38557292]
[1746595468549,15.19533491,1830.3,1830.2,10.85757292]
[1746595469452,15.19533491,1830.3,1830.2,3.56494]
[1746595470353,15.19533491,1830.3,1830.2,3.9834972]
[1746595471352,15.19533491,1830.3,1830.2,3.98342694]
[1746595473160,15.19533491,1830.3,1830.2,0.4184078]
[1746595473857,15.19533491,1830.3,1830.2,0.4184579]
[1746595474958,1.09294,1830.2,1830.1,1.09295]
[1746595475156,15.11349491,1830.2,1830.1,1.51134687]
[1746595476963,15.11349491,1830.2,1830.1,1.51118103]
[1746595477155,11.51349491,1830.2,1830.1,3.15388103]
[1746595477356,1.09292,1830.3,1830.2,1.09294]
[1746595477659,9.88007491,1830.3,1830.2,2.38087103]
[1746595478046,13.48007491,1830.3,1830.2,2.38087103]
[1746595478962,15.06847491,1830.3,1830.2,2.38087103]
[1746595480058,15.06847491,1830.3,1830.2,0.41823103]
[1746595481262,27.43427491,1830.3,1830.2,0.41823103]
[1746595482253,27.43427491,1830.3,1829.9,4.30088]
[1746595482454,5.74132763,1830.0,1829.9,4.30088]
[1746595482659,5.74132763,1830.0,1829.9,4.71896411]
[1746595482858,1.09304,1830.1,1830.0,1.09306]
[1746595483060,6.83436763,1830.1,1830.0,1.51114411]
[1746595483260,13.48019491,1830.1,1830.0,1.51114411]
[1746595483656,13.48019491,1830.1,1830.0,1.51121139]
[1746595484163,13.48019491,1830.1,1830.0,1.5112197]
[1746595485359,13.48019491,1830.1,1830.0,1.51128294]
[1746595485864,12.38715491,1830.1,1830.0,1.51128294]
[1746595486057,12.38715491,1830.1,1830.0,1.5113284]
[1746595486362,13.22295491,1830.1,1830.0,0.4182684]
[1746595487062,16.82295491,1830.1,1830.0,0.4182684]
[1746595487762,16.82295491,1830.1,1830.0,1.51165442]
[1746595488264,16.82295491,1830.1,1830.0,0.41859442]
[1746595489769,1.09306,1830.0,1829.9,4.30089]
[1746595489959,11.48591491,1830.0,1829.9,4.71972057]
[1746595490164,15.08591491,1830.0,1829.9,4.71972057]
[1746595490366,9.34458728,1830.0,1829.9,4.71972057]
[1746595490566,15.08591491,1830.0,1829.9,4.71972057]
[1746595491361,13.99285491,1830.0,1829.9,4.71972057]
[1746595492270,15.08591491,1830.0,1829.9,4.71972057]
[1746595493268,15.08591491,1830.0,1829.9,4.72009778]
[1746595493870,3.6,1830.0,1829.9,4.72009778]
[1746595494072,3.6,1830.0,1829.9,6.35979778]
[1746595494270,0.8574,1830.1,1830.0,1.09306]
[1746595494469,3.90322728,1830.1,1830.0,3.94256778]
[1746595494670,9.64455491,1830.1,1830.0,3.94256778]
[1746595494876,8.78715491,1830.1,1830.0,3.94256778]
[1746595495264,12.38715491,1830.1,1830.0,3.94256778]
[1746595496368,3.6,1830.1,1830.0,3.94256778]
[1746595497072,3.6,1830.1,1830.0,3.94296693]
[1746595497272,2.71519,1830.2,1830.1,1.093]
[1746595497475,2.71519,1830.2,1830.1,3.11820693]
[1746595497672,11.50234491,1830.2,1830.1,3.11820693]
[1746595498071,15.10234491,1830.2,1830.1,3.11820693]
[1746595498681,15.10234491,1830.2,1830.1,3.11822917]
[1746595499577,6.31519,1830.2,1830.1,3.11822917]
[1746595500584,6.31519,1830.2,1830.1,3.11836531]
[1746595502279,6.31519,1830.2,1830.1,3.11840542]
[1746595502980,6.31519,1830.2,1830.1,3.11839873]
[1746595503181,6.31519,1830.2,1830.1,3.11838151]
[1746595503388,3.6,1830.2,1830.1,3.11838151]
[1746595503682,3.6,1830.2,1830.1,7.17718151]
[1746595503877,4.69294,1830.2,1830.1,7.17703325]
[1746595504279,1.09294,1830.2,1830.1,7.17703325]
[1746595505080,2.72372,1830.3,1830.2,1.09294]
[1746595505286,11.51087491,1830.3,1830.2,3.98217325]
[1746595505780,9.88007491,1830.3,1830.2,3.98238222]
[1746595507477,9.88007491,1830.3,1830.2,3.56254]
[1746595507685,9.88007491,1830.3,1830.2,3.9823742]
[1746595508077,11.54677491,1830.3,1830.2,3.9823742]
[1746595508285,15.14677491,1830.3,1830.2,3.9823742]
[1746595508985,15.14677491,1830.3,1830.2,0.4198342]
[1746595509179,15.94157491,1830.3,1830.2,0.4198342]
[1746595511581,15.94157491,1830.3,1830.2,1.5127742]
[1746595513293,15.94157491,1830.3,1830.2,0.4198342]
[1746595513887,19.14937491,1830.3,1830.2,0.4198342]
[1746595514690,28.30637491,1830.3,1830.2,0.4198342]
[1746595516695,1.093,1830.1,1830.0,7.29263292]
[1746595516888,17.24595491,1830.1,1830.0,7.71282676]
[1746595517092,20.84595491,1830.1,1830.0,7.71282676]
[1746595517294,22.51095491,1830.1,1830.0,7.71282676]
[1746595518005,19.30315491,1830.1,1830.0,8.80588676]
[1746595518396,21.00115491,1830.1,1830.0,10.55338676]
[1746595518801,21.00115491,1830.1,1830.0,3.26075384]
[1746595519902,21.00115491,1830.1,1830.0,3.26049997]
[1746595520403,21.00115491,1830.1,1830.0,3.26050123]
[1746595520702,21.00115491,1830.1,1830.0,3.26049704]
[1746595521303,21.00115491,1830.1,1830.0,2.84056]
[1746595521500,21.00115491,1830.1,1830.0,3.26048762]
[1746595521805,21.00115491,1830.1,1830.0,2.16742762]
[1746595523106,21.00115491,1830.1,1830.0,2.16738705]
[1746595523302,21.00115491,1830.1,1830.0,3.26044705]
[1746595524206,21.00115491,1830.1,1830.0,2.16738705]
[1746595525006,21.00115491,1830.1,1830.0,2.1673077]
[1746595526806,21.00115491,1830.1,1830.0,2.16725733]
[1746595527107,17.40115491,1830.1,1830.0,2.16725733]
[1746595527806,17.40115491,1830.1,1830.0,2.16724294]
[1746595528107,21.00115491,1830.1,1830.0,2.16724294]
[1746595529907,21.00115491,1830.1,1830.0,3.26030294]
[1746595530206,17.40115491,1830.1,1830.0,3.26030294]
[1746595534098,17.40115491,1830.1,1830.0,3.26032024]
[1746595535008,16.52815491,1830.1,1830.0,3.26032024]
[1746595535205,1.09297,1830.2,1830.1,1.09294]
[1746595535410,1.09297,1830.2,1830.1,3.19570024]
[1746595535909,1.09297,1830.2,1830.1,3.19582275]
[1746595536109,4.69297,1830.2,1830.1,3.19582275]
[1746595537711,4.69297,1830.2,1830.1,3.19671858]
[1746595539601,4.69297,1830.2,1830.1,3.19675456]
[1746595540613,4.69297,1830.2,1830.1,2.10381456]
[1746595540811,4.69297,1830.2,1830.1,3.19681456]
[1746595541314,4.69297,1830.2,1830.1,3.19689257]
[1746595541809,13.48012491,1830.2,1830.1,2.10389257]
[1746595542008,13.48012491,1830.2,1830.1,3.19689257]
[1746595543116,13.48012491,1830.2,1830.1,3.19703124]
[1746595547117,15.07692491,1830.2,1830.1,3.19703124]
[1746595547916,15.07692491,1830.2,1830.1,2.10403124]
[1746595548217,11.47692491,1830.2,1830.1,3.19703124]
[1746595548611,11.47692491,1830.2,1830.1,3.19715351]
[1746595550516,11.47692491,1830.2,1830.1,3.19709435]
[1746595552322,12.35072491,1830.2,1830.1,3.19711346]
[1746595552615,9.30489763,1830.2,1830.1,3.19711346]
[1746595552821,12.35072491,1830.2,1830.1,3.19711346]
[1746595554121,12.35072491,1830.2,1830.1,3.19708278]
[1746595554626,12.35072491,1830.2,1830.1,0.42108278]
[1746595554627,15.55852491,1830.2,1830.1,0.42108278]
[1746595555011,15.55852491,1830.2,1830.1,1.51408278]
[1746595555225,15.95072491,1830.2,1830.1,1.51408278]
[1746595555421,15.95072491,1830.2,1830.1,2.33268278]
[1746595556024,15.95072491,1830.2,1830.1,2.33273158]
[1746595556324,11.47692491,1830.2,1830.1,2.33273158]
[1746595557819,11.47692491,1830.2,1830.1,2.33278615]
[1746595559525,11.47692491,1830.2,1830.1,2.3328888]
[1746595560129,15.07692491,1830.2,1830.1,2.3328888]
[1746595562624,15.07692491,1830.2,1830.1,0.4212888]
[1746595562830,1.093,1830.1,1830.0,2.75562]
[1746595563127,13.14255491,1830.1,1830.0,1.51416748]
[1746595564728,13.14255491,1830.1,1830.0,1.51411034]
[1746595566427,13.14255491,1830.1,1830.0,1.09302]
[1746595566631,16.35035491,1830.1,1830.0,0.42100317]
[1746595567228,19.95035491,1830.1,1830.0,0.42100317]
[1746595568332,1.09311,1829.9,1829.8,2.81096]
[1746595568531,9.88026491,1829.9,1829.8,3.23171885]
[1746595568938,9.88026491,1829.9,1829.8,0.42075885]
[1746595569235,17.55956491,1829.9,1829.8,0.42075885]
[1746595569424,19.15106491,1829.9,1829.8,0.42075885]
[1746595569831,15.94326491,1829.9,1829.8,0.42075885]
[1746595570133,1.09317,1829.8,1829.7,10.89824292]
[1746595570333,9.88032491,1829.8,1829.7,10.22553647]
[1746595570535,12.32402491,1829.8,1829.7,10.22553722]
[1746595570936,12.32402491,1829.8,1829.7,11.31876722]
[1746595571332,15.92402491,1829.8,1829.7,11.31876722]
[1746595571933,15.92402491,1829.8,1829.7,11.31862743]
[1746595572634,15.92402491,1829.8,1829.7,4.02599451]
[1746595575137,12.32402491,1829.8,1829.7,4.02599451]
[1746595575536,12.32402491,1829.8,1829.7,3.60563]
[1746595575836,12.32402491,1829.8,1829.7,2.93252293]
[1746595576333,12.32402491,1829.8,1829.7,2.12342293]
[1746595577238,15.92402491,1829.8,1829.7,2.12342293]
[1746595577535,15.92402491,1829.8,1829.7,0.42012293]
[1746595578636,1.09341,1829.4,1829.3,10.84447292]
[1746595578839,1.09341,1829.4,1829.3,11.26462219]
[1746595579343,1.09341,1829.4,1829.3,11.2643759]
[1746595579528,4.4884,1829.5,1829.4,1.09341]
[1746595579733,4.4884,1829.5,1829.4,1.51331298]
[1746595580439,4.4884,1829.5,1829.4,0.41990298]
[1746595581040,13.27555491,1829.5,1829.4,0.41990298]
[1746595581241,16.87555491,1829.5,1829.4,0.41990298]
[1746595581640,1.09341,1829.4,1829.3,3.55183]
[1746595581834,14.82696491,1829.4,1829.3,0.41974618]
[1746595582040,18.98396491,1829.4,1829.3,0.41974618]
[1746595582243,1.09353,1829.2,1829.1,10.03442292]
[1746595582441,9.88068491,1829.2,1829.1,7.71252817]
[1746595582636,13.08848491,1829.2,1829.1,7.29263292]
[1746595582836,15.69248491,1829.2,1829.1,7.29263292]
[1746595583236,19.29248491,1829.2,1829.1,7.29263292]
[1746595585134,1.09371,1828.9,1828.8,2.70167]
[1746595585333,14.03686491,1828.9,1828.8,3.12030612]
[1746595585645,14.03686491,1828.9,1828.8,3.12029783]
[1746595586233,17.63686491,1828.9,1828.8,3.12029783]
[1746595587640,17.63686491,1828.9,1828.8,2.0261778]
[1746595587841,19.27966491,1828.9,1828.8,3.1199478]
[1746595588346,19.27966491,1828.9,1828.8,3.11984625]
[1746595589445,18.18595491,1828.9,1828.8,3.11975816]
[1746595590246,19.27966491,1828.9,1828.8,3.11975816]
[1746595590446,16.54315491,1828.9,1828.8,3.11975816]
[1746595591046,16.54315491,1828.9,1828.8,2.70167]
[1746595591250,16.54315491,1828.9,1828.8,3.11972572]
[1746595592952,16.54315491,1828.9,1828.8,3.11967654]
[1746595593652,17.63686491,1828.9,1828.8,3.11967654]
[1746595594054,17.63686491,1828.9,1828.8,2.70167]
[1746595594249,17.51546491,1828.9,1828.8,2.70167]
[1746595594852,17.51546491,1828.9,1828.8,3.11981353]
[1746595595046,17.51546491,1828.9,1828.8,3.11979318]
[1746595595246,21.11546491,1828.9,1828.8,2.70167]
[1746595595951,21.11546491,1828.9,1828.8,1.6079]
[1746595596252,21.11546491,1828.9,1828.8,2.02607202]
[1746595596447,21.11546491,1828.9,1828.8,1.6079]
[1746595596648,21.11546491,1828.9,1828.8,2.70167]
[1746595597151,1.09377,1828.8,1828.7,1.09378]
[1746595597352,11.50402491,1828.8,1828.7,3.25059249]
[1746595597554,2.71687,1828.8,1828.7,3.25059249]
[1746595597753,11.50402491,1828.8,1828.7,3.25059249]
[1746595598153,15.10402491,1828.8,1828.7,3.25059249]
[1746595598352,15.10402491,1828.8,1828.7,3.25072903]
[1746595598946,15.10402491,1828.8,1828.7,0.41834903]
[1746595599252,1.09401,1828.4,1828.3,2.75646]
[1746595599449,1.09401,1828.4,1828.3,3.17498824]
[1746595600353,3.6,1828.4,1828.3,3.17498824]
[1746595602053,3.6,1828.4,1828.3,3.17480635]
[1746595603748,3.6,1828.4,1828.3,3.17484673]
[1746595604155,3.61975,1828.5,1828.4,1.09401]
[1746595604355,12.40690491,1828.5,1828.4,3.21459673]
[1746595605155,16.00690491,1828.5,1828.4,3.21459673]
[1746595606256,16.00690491,1828.5,1828.4,3.21508768]
[1746595607056,14.91295491,1828.5,1828.4,3.21508768]
[1746595607257,16.00690491,1828.5,1828.4,3.21508768]
[1746595607760,16.00690491,1828.5,1828.4,3.21528222]
[1746595608156,16.00690491,1828.5,1828.4,3.21554935]
[1746595609252,16.00690491,1828.5,1828.4,2.79621]
[1746595609453,16.00690491,1828.5,1828.4,3.21571149]
[1746595610355,6.64582728,1828.5,1828.4,3.21571149]
[1746595610656,3.6,1828.5,1828.4,3.21571149]
[1746595611358,4.157,1828.6,1828.5,1.09395]
[1746595611560,1.0938,1828.8,1828.7,1.09383]
[1746595611856,5.25177,1828.8,1828.7,1.51375109]
[1746595612058,14.03892491,1828.8,1828.7,1.51375109]
[1746595612254,17.63892491,1828.8,1828.7,3.23515109]
[1746595612454,19.35752491,1828.8,1828.7,3.23515109]
[1746595614860,19.35752491,1828.8,1828.7,3.23529469]
[1746595615059,20.20752491,1828.8,1828.7,3.23529469]
[1746595616760,20.20752491,1828.8,1828.7,3.23528083]
[1746595617363,16.54515491,1828.8,1828.7,3.23528083]
[1746595618360,17.63892491,1828.8,1828.7,3.23528083]
[1746595618763,16.54515491,1828.8,1828.7,3.23528083]
[1746595619264,4.158,1828.8,1828.7,3.23528083]
[1746595620264,8.85177,1828.8,1828.7,3.23528083]
[1746595620562,8.85177,1828.8,1828.7,3.23538031]
[1746595621961,8.85177,1828.8,1828.7,3.23538041]
[1746595622261,7.758,1828.8,1828.7,3.23538041]
[1746595623263,5.25177,1828.8,1828.7,3.23538041]
[1746595623463,6.90547,1828.8,1828.7,3.23538041]
[1746595625167,10.50547,1828.8,1828.7,3.23538041]
[1746595625365,10.50547,1828.8,1828.7,2.14155041]
[1746595625566,10.50547,1828.8,1828.7,3.23538041]
[1746595625762,10.50547,1828.8,1828.7,3.23549973]
[1746595626767,13.55129728,1828.8,1828.7,3.23549973]
[1746595628670,13.55129728,1828.8,1828.7,3.23554464]
[1746595628872,22.50042491,1828.8,1828.7,0.42031503]
[1746595629164,1.09407,1828.3,1828.2,7.29263292]
[1746595629375,21.40302491,1828.3,1828.2,7.29263292]
[1746595630071,23.98982491,1828.3,1828.2,7.29263292]
[1746595630277,27.58982491,1828.3,1828.2,10.93687402]
[1746595633675,27.58982491,1828.3,1828.0,2.8145]
[1746595633676,1.09417,1828.2,1828.0,2.8145]
[1746595633865,17.7086,1828.3,1828.1,2.82727]
[1746595634059,3.04582728,1828.2,1828.1,2.82727]
[1746595634265,9.88128491,1828.2,1828.1,2.82727]
[1746595634870,11.63278491,1828.2,1828.1,1.7331]
[1746595635876,11.63278491,1828.2,1828.1,2.82729]
[1746595636570,10.53865491,1828.2,1828.1,2.82729]
[1746595637276,14.13865491,1828.2,1828.1,2.82729]
[1746595638271,10.23815,1828.4,1828.2,1.09409]
[1746595638477,9.88122491,1828.3,1828.2,2.79669]
[1746595638680,11.53932491,1828.3,1828.2,2.79669]
[1746595638879,1.6581,1828.3,1828.2,2.79669]
[1746595639074,2.75217,1828.3,1828.2,2.79669]
[1746595639281,1.09413,1828.2,1828.1,0.8578]
[1746595639479,10.41055491,1828.2,1828.1,3.65187]
[1746595639677,7.36472763,1828.2,1828.1,3.65187]
[1746595639876,10.41055491,1828.2,1828.1,3.65187]
[1746595640280,11.50468491,1828.2,1828.1,3.65187]
[1746595641178,10.41055491,1828.2,1828.1,4.05756695]
[1746595641780,10.41055491,1828.2,1828.1,4.05753706]
[1746595642279,4.66922728,1828.2,1828.1,4.05753706]
[1746595642479,10.41055491,1828.2,1828.1,4.05753706]
[1746595643072,10.41055491,1828.2,1828.1,3.65187]
[1746595643275,10.41055491,1828.2,1828.1,4.05751198]
[1746595643481,10.41055491,1828.2,1828.1,3.65187]
[1746595644374,10.41055491,1828.2,1828.1,4.05749089]
[1746595644582,10.41055491,1828.2,1828.1,3.65187]
[1746595644880,10.41055491,1828.2,1828.1,4.05748725]
[1746595645180,14.01055491,1828.2,1828.1,4.05746615]
[1746595645380,14.01055491,1828.2,1828.1,4.0574657]
[1746595645682,14.01055491,1828.2,1828.1,4.05746438]
[1746595645883,15.10468491,1828.2,1828.1,4.05746438]
[1746595646275,15.10468491,1828.2,1828.1,1.49976438]
[1746595646475,1.09419,1828.1,1828.0,1.09421]
[1746595646675,4.45589,1828.1,1828.0,1.49993434]
[1746595646978,17.40104491,1828.1,1828.0,1.49993434]
[1746595647182,21.00104491,1828.1,1828.0,1.49993434]
[1746595647482,19.90685491,1828.1,1828.0,1.49993434]
[1746595647786,19.05395491,1828.1,1828.0,1.49993434]
[1746595648081,15.45395491,1828.1,1828.0,1.49983262]
[1746595648282,15.45395491,1828.1,1828.0,1.49986642]
[1746595648781,15.45395491,1828.1,1828.0,2.32096642]
[1746595648982,13.75165491,1828.1,1828.0,3.13626642]
[1746595649185,12.94515491,1828.1,1828.0,3.13626642]
[1746595649685,4.158,1828.1,1828.0,3.13626642]
[1746595649983,4.158,1828.1,1828.0,3.13635433]
[1746595651777,4.158,1828.1,1828.0,2.73061]
[1746595651984,4.158,1828.1,1828.0,3.13646924]
[1746595653577,11.10641,1828.4,1828.3,1.09407]
[1746595653777,11.10641,1828.4,1828.3,1.49992924]
[1746595653978,19.89356491,1828.4,1828.3,1.49992924]
[1746595654179,23.49356491,1828.4,1828.3,2.33452924]
[1746595654380,18.24155491,1828.4,1828.3,2.33452924]
[1746595654582,19.33556491,1828.4,1828.3,2.33452924]
[1746595654983,19.33556491,1828.4,1828.3,1.49992924]
[1746595655589,19.33556491,1828.4,1828.3,1.50046268]
[1746595655988,19.33556491,1828.4,1828.3,1.50045998]
[1746595657289,19.33556491,1828.4,1828.3,1.50062927]
[1746595657690,18.24155491,1828.4,1828.3,1.50062927]
[1746595659084,16.54515491,1828.4,1828.3,1.50127303]
[1746595659283,16.54515491,1828.4,1828.3,2.32657303]
[1746595660187,12.94515491,1828.4,1828.3,2.32657303]
[1746595660881,14.03916491,1828.4,1828.3,1.91937]
[1746595661084,19.28196491,1828.4,1828.3,2.32658376]
[1746595661294,20.15866491,1828.4,1828.3,2.32658376]
[1746595662494,19.06465491,1828.4,1828.3,2.32658376]
[1746595662689,19.06465491,1828.4,1828.3,2.32663332]
[1746595662882,20.15866491,1828.4,1828.3,2.32663332]
[1746595663494,19.06465491,1828.4,1828.3,2.32663332]
[1746595663688,20.15866491,1828.4,1828.3,2.32663332]